bitfinex-derivatives/quotes_SOLF0:USTF0_20260108
["timestamp","ask_amount","ask_price","bid_price","bid_amount"]
[1767853156624,103.4665,135.49,135.37,2.0961761]
[1767853156829,5.36775584,135.48,135.37,2.0961761]
[1767853157124,5.36775584,135.47,135.37,2.0961761]
[1767853157326,6.6512,135.49,135.4,2.0961761]
[1767853157630,5.36462354,135.48,135.4,2.0961761]
[1767853157826,6.6512,135.49,135.4,2.0961761]
[1767853158030,5.37022575,135.48,135.4,2.0961761]
[1767853158229,6.6512,135.49,135.4,2.0961761]
[1767853158933,6.6516,135.48,135.4,2.0961761]
[1767853159334,108.00411903,135.53,135.4,2.0961761]
[1767853159536,5.36740071,135.51,135.4,2.0961761]
[1767853159834,5.36740071,135.5,135.41,2.0961761]
[1767853160022,103.4176,135.55,135.43,2.0961761]
[1767853160226,5.36785767,135.54,135.43,2.0961761]
[1767853160442,6.6481,135.55,135.47,8.7480761]
[1767853160730,107.95921903,135.59,135.47,8.7480761]
[1767853160938,5.36819254,135.58,135.47,8.7480761]
[1767853161235,5.36819254,135.57,135.44,105.5915761]
[1767853161436,5.36819254,135.56,135.45,89.3761761]
[1767853161633,12.01679472,135.55,135.46,8.7483761]
[1767853161831,6.6484,135.55,135.46,8.7483761]
[1767853163334,6.6488,135.54,135.46,8.7483761]
[1767853163739,103.395,135.58,135.47,8.7479761]
[1767853163934,6.6482,135.55,135.47,8.7479761]
[1767853164136,6.6482,135.55,135.45,93.9326]
[1767853164336,103.4084,135.56,135.45,93.9326]
[1767853164630,5.36805602,135.55,135.45,6.6526]
[1767853164834,103.4084,135.56,135.45,6.6526]
[1767853165039,5.36805243,135.55,135.45,8.7487761]
[1767853165235,103.4237,135.54,135.43,8.7497761]
[1767853165534,108.80028515,135.53,135.43,2.0961761]
[1767853165840,5.36858515,135.52,135.43,2.0961761]
[1767853166638,6.6502,135.51,135.43,2.0961761]
[1767853169641,6.6494,135.53,135.44,2.0961761]
[1767853170242,93.9283,135.55,135.46,2.0961761]
[1767853171637,93.9283,135.55,135.46,8.7484761]
[1767853173538,93.9283,135.55,135.47,6.6519]
[1767853174439,6.6474,135.57,135.47,6.6519]
[1767853174640,5.37536575,135.56,135.47,6.6519]
[1767853174843,103.3926,135.58,135.47,6.6519]
[1767853175040,5.37536575,135.57,135.47,8.68912066]
[1767853175249,5.37536575,135.56,135.47,8.68912066]
[1767853175451,103.3926,135.58,135.47,8.68912066]
[1767853175650,6.6477,135.56,135.48,6.6514]
[1767853176150,5.37685458,135.55,135.48,6.6514]
[1767853176349,6.6477,135.56,135.48,6.6514]
[1767853176550,195.23701903,135.59,135.49,6.6509]
[1767853176746,108.76942208,135.58,135.48,2.03722066]
[1767853176954,5.37692208,135.57,135.46,87.28]
[1767853177143,6.6491,135.53,135.45,8.68982066]
[1767853179751,103.4103,135.56,135.46,6.6524]
[1767853179954,5.37745848,135.55,135.46,6.6524]
[1767853180156,5.37745848,135.54,135.46,6.6524]
[1767853180346,6.6486,135.54,135.46,6.6524]
[1767853180547,6.6486,135.54,135.47,6.6519]
[1767853180744,87.28,135.59,135.48,2.03722066]
[1767853180945,6.6462,135.59,135.49,89.29722066]
[1767853181146,5.37903769,135.58,135.5,2.03722066]
[1767853181353,6.6462,135.59,135.5,2.03722066]
[1767853181553,5.37899934,135.58,135.5,2.03722066]
[1767853181751,6.6455,135.61,135.52,6.6494]
[1767853181950,5.37927033,135.6,135.52,6.6494]
[1767853182249,5.37927033,135.6,135.5,2.03722066]
[1767853182250,5.37927033,135.59,135.53,6.6489]
[1767853182451,87.26,135.63,135.53,6.6489]
[1767853182650,5.32327515,135.62,135.53,6.6489]
[1767853182856,5.32327515,135.61,135.53,6.6489]
[1767853183155,5.32327515,135.6,135.53,6.6489]
[1767853183456,0.05340009,135.58,135.53,6.6489]
[1767853183846,0.05340009,135.58,135.53,8.68612066]
[1767853184048,87.26,135.63,135.54,2.03722066]
[1767853184246,5.32145282,135.62,135.54,2.03722066]
[1767853184450,87.26,135.63,135.54,2.03722066]
[1767853184656,5.32186098,135.62,135.54,2.03722066]
[1767853184869,87.26,135.63,135.54,2.03722066]
[1767853185049,5.32185451,135.62,135.54,2.03722066]
[1767853185356,87.26,135.63,135.54,2.03722066]
[1767853185556,5.32024189,135.62,135.54,2.03722066]
[1767853185751,87.26,135.63,135.54,2.03722066]
[1767853185957,5.32024189,135.62,135.54,2.03722066]
[1767853186158,87.26,135.63,135.54,2.03722066]
[1767853186455,11.96306982,135.62,135.54,8.68562066]
[1767853186655,6.6447,135.62,135.54,8.68562066]
[1767853187454,6.6454,135.61,135.54,2.03722066]
[1767853187849,6.6454,135.61,135.53,87.24]
[1767853188049,6.6458,135.6,135.52,93.8893]
[1767853188358,6.6458,135.6,135.52,95.92652066]
[1767853188657,6.6464,135.59,135.52,2.03722066]
[1767853189348,6.6455,135.61,135.52,2.03722066]
[1767853190151,87.26,135.63,135.54,2.03722066]
[1767853190356,5.31246507,135.62,135.54,2.03722066]
[1767853190557,87.26,135.63,135.54,2.03722066]
[1767853190861,5.31247302,135.62,135.54,2.03722066]
[1767853191062,87.26,135.63,135.54,2.03722066]
[1767853191561,6.6447,135.62,135.54,2.03722066]
[1767853192372,103.3718,135.61,135.51,2.03722066]
[1767853192953,6.6468,135.58,135.51,2.03722066]
[1767853194447,6.646,135.6,135.51,8.68712066]
[1767853195262,6.6463,135.59,135.51,8.68712066]
[1767853195958,6.6463,135.59,135.52,2.03722066]
[1767853196164,6.6454,135.61,135.53,2.03722066]
[1767853196761,6.6454,135.61,135.53,8.68622066]
[1767853196950,103.3634,135.62,135.5,2.03722066]
[1767853197154,103.3634,135.62,135.51,87.24]
[1767853197350,7.42097975,135.64,135.52,2.03722066]
[1767853197555,108.66973979,135.63,135.52,2.03722066]
[1767853197755,5.30833979,135.62,135.52,2.03722066]
[1767853198756,6.6463,135.59,135.52,2.03722066]
[1767853199867,103.3614,135.63,135.52,8.68652066]
[1767853200060,5.31038463,135.62,135.52,8.68652066]
[1767853200261,6.6451,135.62,135.53,2.03722066]
[1767853200462,6.6451,135.62,135.54,2.03722066]
[1767853200660,190.5919,135.64,135.54,2.03722066]
[1767853200965,103.3279,135.67,135.57,2.03722066]
[1767853201157,5.31311845,135.66,135.57,2.03722066]
[1767853201361,103.3279,135.67,135.57,2.03722066]
[1767853201562,5.31336858,135.66,135.57,2.03722066]
[1767853201768,103.3279,135.67,135.57,2.03722066]
[1767853202062,108.6477815,135.66,135.55,6.648]
[1767853202267,103.3469,135.64,135.54,2.06214814]
[1767853202460,103.3549,135.63,135.54,2.06214814]
[1767853203558,6.6455,135.61,135.54,2.06214814]
[1767853204065,190.5618,135.65,135.54,2.06214814]
[1767853204261,190.5618,135.65,135.51,190.6603]
[1767853204262,5.31931153,135.64,135.56,2.10228019]
[1767853204572,103.3019,135.7,135.58,2.10228019]
[1767853204754,5.31917443,135.69,135.58,2.10228019]
[1767853204952,5.31917443,135.68,135.58,89.32228019]
[1767853205168,5.31917443,135.67,135.59,2.10228019]
[1767853205356,103.3019,135.7,135.59,2.10228019]
[1767853205556,6.6423,135.67,135.59,2.10228019]
[1767853205761,103.3166,135.68,135.59,2.10228019]
[1767853205961,103.34,135.65,135.56,2.10228019]
[1767853206162,103.3625,135.62,135.53,2.10228019]
[1767853206353,108.68726065,135.61,135.5,2.10228019]
[1767853206554,108.69513583,135.6,135.5,2.10228019]
[1767853206759,103.3999,135.57,135.47,2.10228019]
[1767853207054,103.4078,135.56,135.47,2.10228019]
[1767853207260,103.4078,135.56,135.4,110.94837975]
[1767853207261,103.4205,135.55,135.41,2.10228019]
[1767853207560,103.4205,135.55,135.4,103.5274]
[1767853207561,5.31422315,135.54,135.43,2.10228019]
[1767853207864,6.6489,135.54,135.44,2.10228019]
[1767853209165,6.6489,135.54,135.45,8.75508019]
[1767853209667,6.6478,135.56,135.46,6.6524]
[1767853209863,5.3148999,135.55,135.46,105.58118019]
[1767853210067,87.22,135.59,135.47,2.10228019]
[1767853210366,5.31529203,135.58,135.48,2.10228019]
[1767853210565,87.22,135.59,135.48,2.10228019]
[1767853210764,5.31560252,135.58,135.48,2.10228019]
[1767853210963,108.7185121,135.57,135.45,89.32228019]
[1767853211268,6.6492,135.53,135.45,8.75498019]
[1767853211468,6.08789495,135.52,135.45,2.10228019]
[1767853211662,6.08789495,135.51,135.45,2.10228019]
[1767853211964,6.6492,135.53,135.45,2.10228019]
[1767853212159,6.08752178,135.52,135.44,93.8733]
[1767853212355,6.08752178,135.51,135.44,93.8733]
[1767853212559,6.6492,135.53,135.44,93.8733]
[1767853212763,6.08864202,135.52,135.46,2.10228019]
[1767853212969,103.4157,135.55,135.44,87.22]
[1767853213271,6.08904375,135.54,135.44,87.22]
[1767853213464,6.08904375,135.53,135.44,87.22]
[1767853213769,6.08904375,135.52,135.44,89.32228019]
[1767853213974,0.08405752,135.51,135.45,2.10228019]
[1767853214262,103.4033,135.57,135.45,2.10228019]
[1767853214461,5.29313044,135.56,135.45,2.10228019]
[1767853214661,103.4033,135.57,135.45,2.10228019]
[1767853214861,5.29313689,135.56,135.45,2.10228019]
[1767853215070,103.4033,135.57,135.45,2.10228019]
[1767853215261,5.29374845,135.56,135.45,2.10228019]
[1767853215462,103.4033,135.57,135.45,2.10228019]
[1767853215661,6.6483,135.55,135.46,6.6522]
[1767853215862,103.4033,135.57,135.46,6.6522]
[1767853216170,6.6487,135.54,135.45,89.34228019]
[1767853216371,103.4103,135.56,135.45,2.10228019]
[1767853216967,6.6483,135.55,135.45,2.10228019]
[1767853217566,6.6487,135.54,135.46,6.6524]
[1767853217768,6.6487,135.54,135.45,2.10228019]
[1767853218571,103.4189,135.55,135.45,2.10228019]
[1767853219266,6.6497,135.52,135.44,6.6532]
[1767853219474,190.6854,135.54,135.42,8.75648019]
[1767853220668,6.6502,135.51,135.43,6.6539]
[1767853220965,87.26,135.54,135.43,2.10228019]
[1767853221474,6.6497,135.52,135.44,8.75568019]
[1767853221668,87.26,135.54,135.45,2.10228019]
[1767853222470,6.6492,135.53,135.45,8.75488019]
[1767853224362,6.6485,135.55,135.46,8.75468019]
[1767853224567,87.26,135.56,135.46,8.75468019]
[1767853225467,87.26,135.56,135.48,2.10228019]
[1767853225667,103.3696,135.61,135.48,2.10228019]
[1767853225971,103.3696,135.61,135.47,103.4729]
[1767853225972,6.6462,135.59,135.5,8.75268019]
[1767853226171,6.06936908,135.58,135.5,2.10228019]
[1767853226374,87.26,135.62,135.5,2.10228019]
[1767853226675,5.90246758,135.61,135.5,2.10228019]
[1767853226878,6.6443,135.63,135.54,2.10228019]
[1767853227067,103.3275,135.67,135.55,2.15001146]
[1767853227269,11.19339372,135.66,135.55,2.15001146]
[1767853227470,5.9029112,135.65,135.56,2.10228019]
[1767853227675,5.9029112,135.64,135.56,2.10228019]
[1767853227879,103.3275,135.67,135.56,2.10228019]
[1767853228178,6.6434,135.65,135.59,0.04848497]
[1767853228680,87.26,135.68,135.57,2.10228019]
[1767853228879,5.90268956,135.67,135.57,2.10228019]
[1767853229078,5.90268956,135.66,135.61,0.05185926]
[1767853229273,87.26,135.68,135.61,0.05185926]
[1767853229582,12.54330366,135.67,135.61,0.05185926]
[1767853229772,5.90100366,135.66,135.61,0.05185926]
[1767853230079,6.6423,135.67,135.61,0.05185926]
[1767853230379,12.54195571,135.66,135.61,0.05185926]
[1767853230579,6.6428,135.66,135.61,0.05185926]
[1767853231679,6.6433,135.65,135.61,0.05185926]
[1767853231874,6.6433,135.65,135.57,2.10228019]
[1767853232177,0.05256705,135.65,135.57,2.10228019]
[1767853232387,0.00070779,135.65,135.57,105.49828019]
[1767853232575,0.00070779,135.65,135.59,2.00168778]
[1767853233273,0.00070779,135.65,135.61,2.00168778]
[1767853233881,0.00070779,135.65,135.62,0.05616825]
[1767853236986,103.2672,135.75,135.63,8.64548778]
[1767853237280,5.88671137,135.74,135.63,8.64548778]
[1767853237477,5.88671137,135.73,135.63,95.86548778]
[1767853237674,103.2672,135.75,135.63,95.86548778]
[1767853237675,5.88671137,135.72,135.63,95.86548778]
[1767853237874,103.2672,135.75,135.63,95.86548778]
[1767853238182,5.88326762,135.74,135.63,95.86548778]
[1767853238380,5.88326762,135.73,135.68,0.04716435]
[1767853238583,12.52316762,135.72,135.68,0.04716435]
[1767853238881,103.259,135.76,135.68,0.04716435]
[1767853239185,5.88019715,135.75,135.68,0.04716435]
[1767853239379,5.88019715,135.74,135.68,0.04716435]
[1767853239583,103.259,135.76,135.68,0.04716435]
[1767853239784,87.22,135.77,135.68,0.04716435]
[1767853239983,103.2117,135.82,135.68,2.04885213]
[1767853239984,5.87631084,135.76,135.68,2.04885213]
[1767853240280,6.6375,135.77,135.69,2.00168778]
[1767853240581,103.2485,135.77,135.71,0.05116376]
[1767853240788,0.05614366,135.74,135.67,87.2]
[1767853240978,0.05614366,135.74,135.66,87.2]
[1767853241178,0.05614366,135.74,135.65,2.00168778]
[1767853241381,6.6394,135.73,135.65,89.20168778]
[1767853241678,103.2562,135.76,135.66,2.00168778]
[1767853241980,5.86627698,135.75,135.66,2.00168778]
[1767853242186,109.13679952,135.74,135.64,2.00168778]
[1767853242376,0.05001381,135.72,135.65,2.00168778]
[1767853242579,0.05001381,135.72,135.65,89.18168778]
[1767853242777,0.05001381,135.72,135.66,2.00168778]
[1767853242981,103.2427,135.78,135.67,2.05188436]
[1767853243275,5.86359506,135.77,135.67,2.05188436]
[1767853243480,5.86359506,135.76,135.67,2.00168778]
[1767853243681,103.2427,135.78,135.67,2.00168778]
[1767853243875,5.85968135,135.77,135.67,2.00168778]
[1767853244073,103.2267,135.8,135.68,2.00168778]
[1767853244282,5.85596414,135.79,135.68,2.00168778]
[1767853244479,5.85596414,135.78,135.71,0.05605854]
[1767853244681,6.6374,135.77,135.71,0.05605854]
[1767853244882,6.6374,135.77,135.7,2.00168778]
[1767853245281,6.6374,135.77,135.73,0.05082882]
[1767853245486,6.6364,135.79,135.73,0.05082882]
[1767853245684,5.85300931,135.78,135.73,0.05082882]
[1767853245983,6.6375,135.77,135.73,0.05082882]
[1767853246183,103.2405,135.78,135.67,8.64358778]
[1767853246389,0.05374251,135.77,135.67,8.64358778]
[1767853246780,103.2405,135.78,135.67,8.64358778]
[1767853247185,5.84864848,135.77,135.67,8.64358778]
[1767853247392,103.2405,135.78,135.67,8.64358778]
[1767853247584,0.04957485,135.74,135.67,8.64358778]
[1767853248885,103.2202,135.81,135.69,2.00168778]
[1767853249084,103.2035,135.83,135.73,2.00168778]
[1767853249282,109.05357293,135.82,135.73,2.00168778]
[1767853249483,103.2128,135.82,135.73,2.00168778]
[1767853249884,103.2035,135.83,135.73,2.00168778]
[1767853250086,103.2094,135.82,135.73,2.00168778]
[1767853250284,103.2035,135.83,135.73,2.00168778]
[1767853250482,103.1953,135.84,135.73,2.00168778]
[1767853250791,103.1825,135.86,135.73,2.00168778]
[1767853250991,5.83752151,135.85,135.73,2.00168778]
[1767853251285,103.1825,135.86,135.74,2.00168778]
[1767853251489,6.6336,135.85,135.74,8.64008778]
[1767853251799,103.1587,135.89,135.73,87.14]
[1767853251800,118.92070168,135.92,135.76,2.00168778]
[1767853251983,103.1574,135.89,135.78,2.00168778]
[1767853252590,6.6317,135.89,135.82,0.05187081]
[1767853252894,103.1487,135.9,135.82,0.05187081]
[1767853253284,93.7709,135.91,135.82,0.05187081]
[1767853253686,103.1515,135.9,135.82,0.05187081]
[1767853253990,103.1515,135.9,135.78,2.00168778]
[1767853253991,87.14,135.91,135.79,2.00168778]
[1767853254188,190.2838,135.91,135.79,2.00168778]
[1767853254793,6.6317,135.89,135.79,2.00168778]
[1767853255386,6.6317,135.89,135.8,2.00168778]
[1767853256090,6.6321,135.88,135.8,2.00168778]
[1767853256785,6.6326,135.87,135.8,2.00168778]
[1767853256988,6.6326,135.87,135.78,89.12168778]
[1767853258594,6.6326,135.87,135.78,95.75828778]
[1767853258893,6.6331,135.86,135.78,2.00168778]
[1767853259599,6.6322,135.88,135.78,2.00168778]
[1767853260098,103.1585,135.89,135.78,2.00168778]
[1767853260298,6.6331,135.86,135.78,2.00168778]
[1767853260499,190.2838,135.91,135.79,2.00168778]
[1767853260701,103.1565,135.89,135.79,2.00168778]
[1767853260902,103.1565,135.89,135.79,89.08168778]
[1767853261097,103.1565,135.89,135.79,2.00168778]
[1767853261493,6.6327,135.87,135.79,2.00168778]
[1767853261994,103.1495,135.9,135.79,2.00168778]
[1767853262195,6.6318,135.89,135.8,2.04561326]
[1767853263402,6.6318,135.89,135.78,103.2349]
[1767853263403,6.6318,135.89,135.82,2.06407928]
[1767853265093,6.6307,135.91,135.83,2.06407928]
[1767853265497,15.78300168,135.92,135.83,2.06407928]
[1767853265896,15.78300168,135.92,135.86,8.74885944]
[1767853266293,15.78300168,135.92,135.86,2.11605944]
[1767853266696,15.78300168,135.92,135.86,0.05198016]
[1767853266897,13.08300167,135.92,135.86,0.05198016]
[1767853267706,13.08300167,135.92,135.86,2.11605944]
[1767853268306,13.08300167,135.92,135.87,2.06407928]
[1767853268607,2.03649593,135.97,135.89,2.06407928]
[1767853269106,8.66429593,135.97,135.89,2.06407928]
[1767853269310,2.03649593,135.94,135.82,2.06407928]
[1767853269600,2.03649593,135.92,135.83,93.6942]
[1767853269807,2.03649593,135.92,135.82,2.06407928]
[1767853270604,6.6311,135.9,135.82,2.06407928]
[1767853271000,0.05551892,135.88,135.81,6.6349]
[1767853271298,0.05551892,135.88,135.79,2.06407928]
[1767853271499,6.6325,135.87,135.79,2.06407928]
[1767853271700,6.6325,135.87,135.76,2.06407928]
[1767853271701,2.03649593,135.87,135.76,2.06407928]
[1767853271893,2.03649593,135.86,135.76,89.10407928]
[1767853272095,2.03649593,135.84,135.72,2.06407928]
[1767853272299,2.08329205,135.84,135.72,2.06407928]
[1767853272503,2.08329205,135.84,135.72,89.10407928]
[1767853272702,2.03649593,135.84,135.72,2.06407928]
[1767853272898,2.03649593,135.84,135.72,89.10407928]
[1767853273098,2.03649593,135.84,135.72,8.70357928]
[1767853273099,0.05081676,135.79,135.72,8.70357928]
[1767853273395,0.05081676,135.79,135.72,95.74357928]
[1767853274599,0.05081676,135.79,135.72,8.70357928]
[1767853274807,0.05081676,135.79,135.72,95.74357928]
[1767853275408,0.05081676,135.79,135.73,1.77588093]
[1767853277707,0.05081676,135.79,135.73,88.83588093]
[1767853278715,0.05081676,135.79,135.73,95.47488093]
[1767853282116,0.05081676,135.79,135.73,93.699]
[1767853283406,1.51562385,135.79,135.71,6.6399]
[1767853283619,5.86227944,135.78,135.71,87.06]
[1767853283821,1.46480709,135.79,135.71,87.06]
[1767853284019,5.86223537,135.78,135.71,87.06]
[1767853284317,0.05182913,135.76,135.71,87.06]
[1767853286011,0.05182913,135.76,135.7,6.6405]
[1767853286223,5.86495101,135.75,135.68,6.6414]
[1767853286422,0.05182913,135.76,135.68,93.7214]
[1767853286624,5.86636491,135.75,135.68,93.7214]
[1767853286921,1.46480709,135.77,135.68,93.7214]
[1767853287122,0.05524144,135.73,135.69,6.641]
[1767853292034,0.05524144,135.73,135.67,6.642]
[1767853292328,0.05524144,135.73,135.68,87.1]
[1767853292624,1.46480709,135.75,135.68,87.1]
[1767853292826,6.6374,135.77,135.65,6.643]
[1767853292827,0.05263906,135.72,135.65,6.643]
[1767853293027,0.05263906,135.72,135.66,87.1]
[1767853293627,0.32477344,135.73,135.66,87.1]
[1767853293828,0.05332259,135.7,135.62,107.91405404]
[1767853294325,0.05332259,135.7,135.65,6.643]
[1767853294524,0.05332259,135.7,135.63,190.4507]
[1767853294825,0.05332259,135.7,135.64,103.3457]
[1767853295833,0.05332259,135.7,135.66,6.6423]
[1767853296023,0.05332259,135.7,135.63,190.4507]
[1767853296334,0.05332259,135.7,135.63,87.1]
[1767853296923,0.05332259,135.7,135.65,6.6431]
[1767853298147,0.05332259,135.7,135.63,87.1]
[1767853300140,0.05332259,135.7,135.62,107.91345404]
[1767853300446,0.05332259,135.7,135.63,87.12]
[1767853300743,0.05332259,135.7,135.65,6.6431]
[1767853301147,0.05332259,135.7,135.63,87.12]
[1767853301547,0.05332259,135.7,135.66,6.6426]
[1767853302347,0.05332259,135.7,135.64,103.3463]
[1767853302743,0.05332259,135.7,135.65,87.12]
[1767853303550,0.05332259,135.7,135.67,6.6421]
[1767853305748,0.32477344,135.76,135.68,8.49799084]
[1767853306049,0.32477344,135.75,135.67,87.1734008]
[1767853306257,0.32477344,135.73,135.67,87.12]
[1767853306438,0.32477344,135.73,135.66,6.6424]
[1767853306644,0.32477344,135.73,135.67,87.12]
[1767853307141,0.32477344,135.73,135.69,0.049646]
[1767853307636,6.96407344,135.73,135.69,0.049646]
[1767853308947,0.32477344,135.73,135.69,0.049646]
[1767853309553,6.96347344,135.75,135.69,0.049646]
[1767853309747,5.81094952,135.74,135.69,0.049646]
[1767853309942,6.96347344,135.75,135.69,0.049646]
[1767853310150,5.81021728,135.74,135.69,0.049646]
[1767853310339,6.96347344,135.75,135.69,0.049646]
[1767853310545,6.13730536,135.74,135.69,0.049646]
[1767853310747,0.32477344,135.74,135.69,0.049646]
[1767853312447,6.96357344,135.74,135.69,0.049646]
[1767853312655,5.81935049,135.73,135.69,0.049646]
[1767853312955,6.96357344,135.74,135.69,0.049646]
[1767853313156,5.8192748,135.73,135.69,0.049646]
[1767853313368,6.96357344,135.74,135.69,0.049646]
[1767853313550,5.82563685,135.73,135.69,0.049646]
[1767853313858,0.32477344,135.74,135.69,0.049646]
[1767853314061,5.8257662,135.73,135.69,0.049646]
[1767853314353,0.32477344,135.74,135.69,0.049646]
[1767853314555,5.77480436,135.73,135.69,0.049646]
[1767853314752,103.2431,135.78,135.69,0.049646]
[1767853314753,0.32477344,135.76,135.69,0.049646]
[1767853314946,0.32477344,135.74,135.67,87.12]
[1767853315153,6.09928338,135.73,135.67,87.12]
[1767853315358,5.77450994,135.72,135.67,87.12]
[1767853315655,0.32477344,135.73,135.67,87.12]
[1767853315855,5.71352071,135.72,135.67,87.12]
[1767853316057,0.32477344,135.73,135.67,87.12]
[1767853316253,5.71351825,135.72,135.67,87.12]
[1767853316461,0.05245604,135.71,135.67,87.12]
[1767853319261,0.00281004,135.71,135.67,87.12]
[1767853319459,0.00281004,135.71,135.68,0.04721805]
[1767853320755,0.32477344,135.76,135.69,87.12]
[1767853321059,5.72199818,135.75,135.68,0.04721805]
[1767853321261,5.72199818,135.74,135.69,87.12]
[1767853321454,5.72199818,135.73,135.69,87.12]
[1767853321656,6.96257344,135.76,135.69,87.12]
[1767853321857,5.72211619,135.75,135.69,87.12]
[1767853322054,0.32477344,135.76,135.69,87.12]
[1767853322257,6.04972779,135.75,135.71,0.04902689]
[1767853322459,0.05302857,135.73,135.69,87.12]
[1767853322657,0.05302857,135.73,135.65,2.90093652]
[1767853322857,0.05302857,135.73,135.67,6.6421]
[1767853323359,0.05302857,135.73,135.66,87.12]
[1767853323768,0.05302857,135.73,135.68,6.6416]
[1767853324272,0.05302857,135.73,135.69,87.12]
[1767853325562,0.05302857,135.73,135.69,93.761]
[1767853325759,0.31192123,135.77,135.7,0.05341872]
[1767853325963,5.9964639,135.76,135.7,0.05341872]
[1767853326160,5.68454267,135.75,135.7,0.05341872]
[1767853326367,0.31192123,135.76,135.7,0.05341872]
[1767853326570,5.68696592,135.75,135.7,87.17341872]
[1767853326762,5.66533113,135.74,135.7,87.17341872]
[1767853326962,6.94972123,135.76,135.7,87.17341872]
[1767853327157,5.66532627,135.75,135.7,87.17341872]
[1767853327362,5.66532627,135.74,135.7,87.17341872]
[1767853327567,6.94972123,135.76,135.7,87.17341872]
[1767853327767,5.6696277,135.75,135.7,87.17341872]
[1767853327963,5.6696277,135.74,135.7,87.17341872]
[1767853328163,0.31192123,135.75,135.7,0.05341872]
[1767853328368,5.98142803,135.74,135.7,0.05341872]
[1767853328566,5.98142803,135.74,135.69,87.12]
[1767853328567,0.31192123,135.74,135.69,87.12]
[1767853328773,0.31192123,135.72,135.61,2.90093652]
[1767853328966,5.98456689,135.71,135.62,87.12]
[1767853329160,5.67264566,135.7,135.62,87.12]
[1767853329363,0.31192123,135.71,135.63,6.6441]
[1767853329563,5.98326944,135.7,135.63,6.6441]
[1767853329770,0.31192123,135.68,135.56,2.90093652]
[1767853329974,6.95482123,135.66,135.57,93.7669]
[1767853330174,0.31192123,135.64,135.54,2.90093652]
[1767853330577,0.31192123,135.62,135.55,87.12]
[1767853330873,0.05102451,135.6,135.53,6.6487]
[1767853331185,0.05102451,135.6,135.54,87.12]
[1767853331772,0.05102451,135.6,135.52,106.33593652]
[1767853331973,0.05102451,135.6,135.53,87.12]
[1767853332275,0.05102451,135.6,135.54,93.7684]
[1767853332461,0.05102451,135.6,135.54,87.14]
[1767853332666,0.05102451,135.6,135.46,103.4827]
[1767853332667,0.36294574,135.6,135.49,2.90093652]
[1767853332868,0.31192123,135.58,135.49,87.14]
[1767853333166,0.31192123,135.56,135.46,2.90093652]
[1767853333364,0.31192123,135.56,135.47,87.14]
[1767853333677,0.35973272,135.55,135.44,106.39763652]
[1767853333974,0.35973272,135.55,135.45,87.14]
[1767853334273,0.31192123,135.55,135.45,87.14]
[1767853334471,0.05043835,135.51,135.45,87.14]
[1767853334676,0.05043835,135.51,135.43,15.78300168]
[1767853334973,0.05043835,135.51,135.44,87.16]
[1767853336076,0.05043835,135.51,135.43,15.78300168]
[1767853336077,0.36235958,135.51,135.43,15.78300168]
[1767853336268,0.36235958,135.51,135.44,87.16]
[1767853336575,0.36235958,135.51,135.43,15.78300168]
[1767853336576,0.36235958,135.51,135.43,102.96300168]
[1767853337480,0.36235958,135.51,135.43,15.78300168]
[1767853337776,0.36235958,135.51,135.44,87.18]
[1767853338174,0.05043835,135.51,135.45,6.6528]
[1767853338378,0.05043835,135.51,135.44,87.18]
[1767853338577,0.36235958,135.51,135.43,102.96300168]
[1767853340375,0.05043835,135.51,135.46,103.4788]
[1767853340582,0.31192123,135.57,135.49,103.457]
[1767853340775,0.31192123,135.57,135.49,87.2]
[1767853341181,0.31192123,135.57,135.47,87.2]
[1767853341780,0.31192123,135.56,135.46,87.22]
[1767853342172,103.4005,135.57,135.45,93.8728]
[1767853342173,0.31192123,135.54,135.45,93.8728]
[1767853343376,0.31192123,135.54,135.45,87.22]
[1767853345088,0.31192123,135.57,135.44,125.6687]
[1767853345384,0.31192123,135.56,135.45,87.22]
[1767853345683,0.31192123,135.56,135.46,87.24]
[1767853345881,6.95982123,135.56,135.46,87.24]
[1767853346682,0.31192123,135.55,135.46,87.24]
[1767853347183,0.31192123,135.55,135.46,84.54]
[1767853349581,0.31192123,135.55,135.47,87.24]
[1767853350080,6.95872123,135.58,135.48,87.24]
[1767853350479,6.95872123,135.58,135.47,6.6517]
[1767853350676,0.31192123,135.57,135.43,37.95300168]
[1767853350879,0.31192123,135.52,135.43,15.78300168]
[1767853351477,6.96212123,135.51,135.43,15.78300168]